fUST/lending_fUST_20250214
["ID","MTS","AMOUNT","RATE_DAILY","PERIOD"]
[353034707,1739502639495,-500.0,0.0001378,2]
[353034708,1739502639505,-500.0,0.0001378,2]
[353034709,1739502639514,-207.90633987,0.0001378,2]
[353034710,1739502639524,-500.0,0.0001378,2]
[353034711,1739502639534,-500.0,0.0001378,2]
[353034712,1739502639543,-514.92538617,0.0001378,2]
[353034713,1739502639553,-3200.7,0.0001378,2]
[353034714,1739502639563,-500.0,0.0001378,2]
[353034715,1739502639575,-502.97,0.0001378,2]
[353034716,1739502639584,-500.0,0.0001378,2]
[353034717,1739502639594,-529.81111093,0.0001378,2]
[353034718,1739502639603,-748.07,0.0001378,2]
[353034719,1739502639612,-6828.15,0.0001378,2]
[353034720,1739502639621,-1607.09,0.0001378,2]
[353034721,1739502639630,-1769.89,0.0001378,2]
[353034722,1739502639639,-500.0,0.0001378,2]
[353034723,1739502639649,-592.56,0.0001378,2]
[353034724,1739502639660,-358.3363738,0.000138,2]
[353034725,1739502639669,-500.0,0.00013858,2]
[353034726,1739502639679,-382.77707118,0.00013863,2]
[353034727,1739502639688,-500.0,0.00013863,2]
[353034728,1739502639697,-500.0,0.00013863,2]
[353034729,1739502639706,-365.72,0.00013863,2]
[353034730,1739502639716,-151.0,0.00013863,2]
[353034731,1739502639725,-151.0,0.00013863,2]
[353034732,1739502639744,-151.0,0.00013863,2]
[353034733,1739502639755,-500.0,0.00013863,2]
[353034734,1739502639765,-500.0,0.00013863,2]
[353034735,1739502639774,-363.92,0.00013863,2]
[353034736,1739502639784,-500.0,0.00013863,2]
[353034737,1739502639794,-548.59,0.00013863,2]
[353034738,1739502639803,-500.0,0.00013863,2]
[353034739,1739502639813,-500.0,0.00013863,2]
[353034740,1739502639822,-500.0,0.00013863,2]
[353034741,1739502639832,-652.82,0.00013863,2]
[353034742,1739502639841,-200.72,0.00013863,2]
[353034743,1739502639851,-500.0,0.00013863,2]
[353034744,1739502639861,-238.62,0.00013863,2]
[353034745,1739502639870,-217.46,0.00013863,2]
[353034746,1739502639879,-500.0,0.00013863,2]
[353034747,1739502639889,-500.0,0.00013863,2]
[353034748,1739502639898,-500.0,0.00013863,2]
[353034749,1739502639908,-500.0,0.00013863,2]
[353034750,1739502639918,-3200.7,0.00013863,2]
[353034751,1739502639927,-153.08,0.00013863,2]
[353034752,1739502639938,-502.97,0.00013863,2]
[353034753,1739502639947,-500.0,0.00013863,2]
[353034754,1739502639957,-151.0,0.00013863,2]
[353034755,1739502639966,-748.07,0.00013863,2]
[353034756,1739502639976,-151.0,0.00013863,2]
[353034757,1739502639986,-6828.15,0.00013863,2]
[353034758,1739502639995,-1607.09,0.00013863,2]
[353034759,1739502640005,-1769.89,0.00013863,2]
[353034760,1739502640014,-500.0,0.00013863,2]
[353034761,1739502640023,-592.56,0.00013863,2]
[353034762,1739502640032,-500.0,0.0001394,2]
[353034763,1739502640042,-151.760659,0.0001394,2]
[353034764,1739502640051,-225.006275,0.0001394,2]
[353034765,1739502640061,-225.006275,0.0001394,2]
[353034766,1739502640070,-151.366894,0.0001394,2]
[353034767,1739502640079,-241.53378,0.0001394,2]
[353034768,1739502640089,-241.53378,0.0001394,2]
[353034769,1739502640098,-527.96465703,0.0001394,2]
[353034770,1739502640108,-566.94928084,0.0001394,2]
[353034771,1739502640117,-500.0,0.0001394,2]
[353034772,1739502640126,-500.0,0.0001394,2]
[353034773,1739502640136,-500.0,0.0001394,2]
[353034774,1739502640146,-500.0,0.0001394,2]
[353034775,1739502640155,-500.0,0.0001394,2]
[353034776,1739502640166,-500.0,0.0001394,2]
[353034777,1739502640176,-500.0,0.0001394,2]
[353034778,1739502640185,-500.0,0.0001394,2]
[353034779,1739502640195,-500.0,0.0001394,2]
[353034780,1739502640204,-500.0,0.0001394,2]
[353034781,1739502640214,-199.64773697,0.0001394,2]
[353034782,1739502640223,-500.0,0.0001394,2]
[353034783,1739502640233,-500.0,0.0001394,2]
[353034784,1739502640243,-500.0,0.0001394,2]
[353034785,1739502640253,-500.0,0.0001394,2]
[353034787,1739502640262,-500.0,0.0001394,2]
[353034788,1739502640271,-500.0,0.0001394,2]
[353034789,1739502640281,-500.0,0.0001394,2]
[353034790,1739502640291,-500.0,0.0001394,2]
[353034792,1739502640301,-500.0,0.0001394,2]
[353034794,1739502640311,-500.0,0.0001394,2]
[353034795,1739502640320,-642.23686999,0.0001394,2]
[353034796,1739502640330,-500.0,0.0001394,2]
[353034797,1739502640340,-500.0,0.0001394,2]
[353034801,1739502640519,-500.0,0.0001394,2]
[353034802,1739502640531,-500.0,0.0001394,2]
[353034803,1739502640542,-500.0,0.0001394,2]
[353034804,1739502640551,-500.0,0.0001394,2]
[353034805,1739502640562,-500.0,0.0001394,2]
[353034807,1739502640574,-500.0,0.0001394,2]
[353034809,1739502640585,-500.0,0.0001394,2]
[353034811,1739502640594,-500.0,0.0001394,2]
[353034813,1739502640604,-500.0,0.0001394,2]
[353034815,1739502640615,-500.0,0.0001394,2]
[353034817,1739502640625,-500.0,0.0001394,2]
[353034819,1739502640635,-500.0,0.0001394,2]
[353034821,1739502640645,-500.0,0.0001394,2]
[353034823,1739502640657,-500.0,0.0001394,2]
[353034825,1739502640669,-500.0,0.0001394,2]
[353034827,1739502640679,-500.0,0.0001394,2]
[353034829,1739502640688,-500.0,0.0001394,2]
[353034831,1739502640698,-500.0,0.0001394,2]
[353034833,1739502640707,-500.0,0.0001394,2]
[353034834,1739502640717,-500.0,0.0001394,2]
[353034835,1739502640726,-500.0,0.0001394,2]
[353034836,1739502640736,-500.0,0.0001394,2]
[353034837,1739502640747,-500.0,0.0001394,2]
[353034838,1739502640756,-500.0,0.0001394,2]
[353034839,1739502640766,-500.0,0.0001394,2]
[353034840,1739502640775,-500.0,0.0001394,2]
[353034841,1739502640785,-500.0,0.0001394,2]
[353034842,1739502640794,-500.0,0.0001394,2]
[353034843,1739502640803,-500.0,0.0001394,2]
[353034844,1739502640814,-500.0,0.0001394,2]
[353034845,1739502640825,-500.0,0.0001394,2]
[353034846,1739502640834,-500.0,0.0001394,2]
[353034847,1739502640844,-333.59758784,0.0001394,2]
[353034848,1739502640854,-500.0,0.0001394,2]
[353034849,1739502640863,-500.0,0.0001394,2]
[353034850,1739502640873,-500.0,0.0001394,2]
[353034851,1739502640882,-500.0,0.0001394,2]
[353034852,1739502640891,-500.0,0.0001394,2]
[353034853,1739502640901,-500.0,0.0001394,2]
[353034854,1739502640911,-500.0,0.0001394,2]
[353034855,1739502640920,-500.0,0.0001394,2]
[353034856,1739502640930,-500.0,0.0001394,2]
[353034857,1739502640940,-500.0,0.0001394,2]
[353034858,1739502640949,-200.0,0.0001394,2]
[353034859,1739502640959,-151.0,0.00013941,2]
[353034860,1739502640969,-1816.876959,0.00013941,2]
[353034861,1739502640978,-1816.876959,0.00013941,2]
[353034862,1739502640987,-225.006275,0.00013941,2]
[353034863,1739502640997,-225.006275,0.00013941,2]
[353034864,1739502641007,-241.53378,0.00013941,2]
[353034865,1739502641016,-151.0,0.00013941,2]
[353034866,1739502641026,-241.53378,0.00013941,2]
[353034867,1739502641035,-151.0,0.00013942,2]
[353034868,1739502641045,-151.0,0.00013942,2]
[353034869,1739502641055,-151.0,0.00013942,2]
[353034870,1739502641065,-151.0,0.00013942,2]
[353034871,1739502641075,-177.575291,0.00013942,2]
[353034872,1739502641084,-1056.482873,0.00013942,2]
[353034873,1739502641094,-1056.482873,0.00013942,2]
[353034874,1739502641104,-151.0,0.00013942,2]
[353034875,1739502641114,-404.410496,0.00013942,2]
[353034876,1739502641124,-404.410496,0.00013942,2]
[353034877,1739502641134,-393.040803,0.00013942,2]
[353034878,1739502641144,-393.040803,0.00013942,2]
[353034879,1739502641156,-151.228114,0.00013943,2]
[353034880,1739502641166,-211.587828,0.00013943,2]
[353034881,1739502641176,-211.587828,0.00013943,2]
[353034882,1739502641185,-151.0,0.00013943,2]
[353034883,1739502641195,-151.0,0.00013943,2]
[353034884,1739502641205,-356.538573,0.00013943,2]
[353034885,1739502641218,-356.538573,0.00013943,2]
[353034886,1739502641228,-1172.873605,0.00013943,2]
[353034887,1739502641238,-1172.873605,0.00013943,2]
[353034888,1739502641247,-151.0,0.00013943,2]
[353034889,1739502641257,-151.0,0.00013943,2]
[353034890,1739502641266,-1056.482873,0.00013943,2]
[353034891,1739502641276,-1056.482873,0.00013943,2]
[353034892,1739502641286,-151.0,0.00013943,2]
[353034893,1739502641295,-151.0,0.00013943,2]
[353034894,1739502641307,-404.410496,0.00013943,2]
[353034895,1739502641317,-404.410496,0.00013943,2]
[353034896,1739502641326,-393.040803,0.00013943,2]
[353034897,1739502641336,-393.040803,0.00013943,2]
[353034898,1739502641345,-1816.876959,0.00013943,2]
[353034899,1739502641355,-1816.876959,0.00013943,2]
[353034900,1739502641364,-151.0,0.00013943,2]
[353034901,1739502641374,-500.0,0.00013944,2]
[353034902,1739502641384,-151.0,0.00013944,2]
[353034903,1739502641394,-151.0,0.00013944,2]
[353034904,1739502641405,-500.0,0.00013944,2]
[353034905,1739502641416,-500.0,0.00013944,2]
[353034906,1739502641425,-500.0,0.00013944,2]
[353034907,1739502641435,-500.0,0.00013944,2]
[353034908,1739502641445,-500.0,0.00013944,2]
[353034909,1739502641455,-500.0,0.00013944,2]
[353034910,1739502641465,-500.0,0.00013944,2]
[353034911,1739502641477,-500.0,0.00013944,2]
[353034912,1739502641495,-500.0,0.00013944,2]
[353034913,1739502641505,-500.0,0.00013944,2]
[353034914,1739502641516,-500.0,0.00013944,2]
[353034915,1739502641528,-500.0,0.00013944,2]
[353034916,1739502641538,-500.0,0.00013944,2]
[353034917,1739502641547,-500.0,0.00013944,2]
[353034918,1739502641557,-500.0,0.00013944,2]
[353034919,1739502641567,-500.0,0.00013944,2]
[353034920,1739502641579,-500.0,0.00013944,2]
[353034921,1739502641589,-500.0,0.00013944,2]
[353034922,1739502641599,-500.0,0.00013944,2]
[353034923,1739502641609,-500.0,0.00013944,2]
[353034924,1739502641620,-500.0,0.00013944,2]
[353034925,1739502641631,-500.0,0.00013944,2]
[353034926,1739502641640,-500.0,0.00013944,2]
[353034927,1739502641651,-500.0,0.00013944,2]
[353034928,1739502641660,-500.0,0.00013944,2]
[353034929,1739502641670,-596.793165,0.00013944,2]
[353034930,1739502641679,-272.11244,0.00013945,2]
[353034931,1739502641689,-272.11244,0.00013945,2]
[353034932,1739502641698,-650.225686,0.00013945,2]
[353034933,1739502641708,-586.63958,0.00013945,2]
[353034934,1739502641717,-586.63958,0.00013945,2]
[353034935,1739502641726,-318.096292,0.00013945,2]
[353034936,1739502641736,-386.910573,0.00013945,2]
[353034937,1739502641745,-386.910573,0.00013945,2]
[353034938,1739502641755,-151.0,0.00013945,2]
[353034939,1739502641765,-151.0,0.00013945,2]
[353034940,1739502641774,-151.0,0.00013945,2]
[353034941,1739502641784,-151.0,0.00013945,2]
[353034942,1739502641793,-151.0,0.00013945,2]
[353034943,1739502641803,-185.51,0.00013945,2]
[353034944,1739502641812,-909.293133,0.00013945,2]
[353034945,1739502641821,-909.293133,0.00013945,2]
[353034946,1739502641830,-188.59131,0.00013945,2]
[353034947,1739502641839,-188.59131,0.00013945,2]
[353034948,1739502641849,-500.0,0.00013945,2]
[353034949,1739502641859,-151.0,0.00013945,2]
[353034950,1739502641869,-151.0,0.00013945,2]
[353034951,1739502641878,-151.0,0.00013945,2]
[353034952,1739502641888,-151.0,0.00013945,2]
[353034953,1739502641897,-170.857251,0.00013945,2]
[353034954,1739502641907,-170.857251,0.00013945,2]
[353034955,1739502641918,-344.870529,0.00013945,2]
[353034956,1739502641928,-344.870529,0.00013945,2]
[353034957,1739502641938,-377.649898,0.00013945,2]
[353034958,1739502641948,-377.649898,0.00013945,2]
[353034959,1739502641958,-318.924386,0.00013945,2]
[353034960,1739502641968,-318.924386,0.00013945,2]
[353034961,1739502641978,-1077.026525,0.00013945,2]
[353034962,1739502641987,-211.587828,0.00013945,2]
[353034963,1739502641997,-211.587828,0.00013945,2]
[353034964,1739502642006,-211.587828,0.00013945,2]
[353034965,1739502642017,-211.587828,0.00013945,2]
[353034966,1739502642026,-151.0,0.00013945,2]
[353034967,1739502642037,-151.0,0.00013945,2]
[353034968,1739502642048,-151.0,0.00013945,2]
[353034969,1739502642058,-151.0,0.00013945,2]
[353034970,1739502642067,-151.0,0.00013945,2]
[353034971,1739502642077,-356.538573,0.00013945,2]
[353034972,1739502642087,-356.538573,0.00013945,2]
[353034973,1739502642097,-356.538573,0.00013945,2]
[353034974,1739502642107,-356.538573,0.00013945,2]
[353034975,1739502642116,-1172.873605,0.00013945,2]
[353034976,1739502642126,-1172.873605,0.00013945,2]
[353034977,1739502642136,-1172.873605,0.00013945,2]
[353034978,1739502642145,-1172.873605,0.00013945,2]
[353034979,1739502642155,-151.0,0.00013945,2]
[353034980,1739502642167,-151.0,0.00013945,2]
[353034981,1739502642177,-151.0,0.00013945,2]
[353034982,1739502642186,-151.0,0.00013945,2]
[353034983,1739502642196,-500.0,0.00013945,2]
[353034984,1739502642207,-500.0,0.00013945,2]
[353034985,1739502642217,-151.0,0.00013945,2]
[353034986,1739502642228,-151.0,0.00013945,2]
[353034987,1739502642238,-500.0,0.00013945,2]
[353034988,1739502642248,-1056.482873,0.00013945,2]
[353034989,1739502642259,-1056.482873,0.00013945,2]
[353034990,1739502642269,-548.59,0.00013945,2]
[353034991,1739502642278,-1056.482873,0.00013945,2]
[353034992,1739502642288,-1056.482873,0.00013945,2]
[353034993,1739502642297,-515.96,0.00013945,2]
[353034994,1739502642307,-500.0,0.00013945,2]
[353034995,1739502642316,-151.0,0.00013945,2]
[353034996,1739502642326,-151.0,0.00013945,2]
[353034997,1739502642336,-500.0,0.00013945,2]
[353034998,1739502642346,-652.82,0.00013945,2]
[353034999,1739502642356,-151.0,0.00013945,2]
[353035000,1739502642366,-151.0,0.00013945,2]
[353035001,1739502642375,-500.0,0.00013945,2]
[353035002,1739502642385,-404.410496,0.00013945,2]
[353035003,1739502642395,-404.410496,0.00013945,2]
[353035004,1739502642405,-404.410496,0.00013945,2]
[353035005,1739502642416,-404.410496,0.00013945,2]
[353035006,1739502642426,-500.0,0.00013945,2]
[353035007,1739502642435,-393.040803,0.00013945,2]
[353035008,1739502642445,-393.040803,0.00013945,2]
[353035009,1739502642454,-500.0,0.00013945,2]
[353035010,1739502642464,-393.040803,0.00013945,2]
[353035011,1739502642474,-393.040803,0.00013945,2]
[353035012,1739502642483,-1816.876959,0.00013945,2]
[353035013,1739502642494,-1816.876959,0.00013945,2]
[353035014,1739502642504,-1816.876959,0.00013945,2]
[353035015,1739502642513,-1816.876959,0.00013945,2]
[353035016,1739502642523,-500.0,0.00013945,2]
[353035017,1739502642532,-500.0,0.00013945,2]
[353035018,1739502642542,-3200.7,0.00013945,2]
[353035019,1739502642552,-502.97,0.00013945,2]
[353035020,1739502642561,-500.0,0.00013945,2]
[353035021,1739502642576,-225.006275,0.00013945,2]
[353035022,1739502642586,-225.006275,0.00013945,2]
[353035023,1739502642595,-748.07,0.00013945,2]
[353035024,1739502642605,-225.006275,0.00013945,2]
[353035025,1739502642615,-225.006275,0.00013945,2]
[353035026,1739502642624,-241.53378,0.00013945,2]
[353035027,1739502642634,-241.53378,0.00013945,2]
[353035028,1739502642643,-151.0,0.00013945,2]
[353035029,1739502642654,-151.0,0.00013945,2]
[353035030,1739502642664,-241.53378,0.00013945,2]
[353035031,1739502642673,-241.53378,0.00013945,2]
[353035032,1739502642684,-6828.15,0.00013945,2]
[353035033,1739502642694,-1607.09,0.00013945,2]
[353035034,1739502642704,-1769.89,0.00013945,2]
[353035035,1739502642715,-500.0,0.00013945,2]
[353035036,1739502642726,-592.56,0.00013945,2]
[353035037,1739502642736,-396.0,0.00013954,2]
[353035038,1739502642746,-500.0,0.00013972,2]
[353035039,1739502642757,-420.0,0.00014,2]
[353035040,1739502642766,-500.0,0.00014023,2]
[353035041,1739502642776,-405.677941,0.00014027,2]
[353035042,1739502642786,-405.677941,0.00014027,2]
[353035043,1739502642796,-466.517645,0.00014027,2]
[353035044,1739502642805,-466.517645,0.00014027,2]
[353035045,1739502642815,-272.11244,0.00014027,2]
[353035046,1739502642825,-272.11244,0.00014027,2]
[353035047,1739502642834,-650.225686,0.00014027,2]
[353035048,1739502642844,-382.342922,0.00014027,2]
[353035049,1739502642853,-382.342922,0.00014027,2]
[353035050,1739502642863,-586.63958,0.00014027,2]
[353035051,1739502642873,-586.63958,0.00014027,2]
[353035052,1739502642882,-318.096292,0.00014027,2]
[353035053,1739502642892,-386.910573,0.00014027,2]
[353035054,1739502642902,-386.910573,0.00014027,2]
[353035055,1739502642913,-151.0,0.00014027,2]
[353035056,1739502642923,-198.270697,0.00014027,2]
[353035057,1739502642932,-151.0,0.00014027,2]
[353035058,1739502642943,-151.0,0.00014027,2]
[353035059,1739502642953,-156.605889,0.00014027,2]
[353035060,1739502642964,-909.293133,0.00014027,2]
[353035061,1739502642974,-909.293133,0.00014027,2]
[353035062,1739502642984,-188.59131,0.00014027,2]
[353035063,1739502642994,-188.59131,0.00014027,2]
[353035064,1739502643003,-500.0,0.00014027,2]
[353035065,1739502643013,-151.477112,0.00014027,2]
[353035066,1739502643024,-151.0,0.00014027,2]
[353035067,1739502643035,-170.857251,0.00014027,2]
[353035068,1739502643044,-170.857251,0.00014027,2]
[353035069,1739502643055,-170.857251,0.00014027,2]
[353035070,1739502643069,-170.857251,0.00014027,2]
[353035071,1739502643079,-344.870529,0.00014027,2]
[353035072,1739502643091,-344.870529,0.00014027,2]
[353035073,1739502643101,-377.649898,0.00014027,2]
[353035074,1739502643111,-377.649898,0.00014027,2]
[353035075,1739502643122,-318.924386,0.00014027,2]
[353035076,1739502643132,-318.924386,0.00014027,2]
[353035077,1739502643143,-1077.026525,0.00014027,2]
[353035078,1739502643153,-1077.026525,0.00014027,2]
[353035079,1739502643163,-1077.026525,0.00014027,2]
[353035080,1739502643173,-1077.026525,0.00014027,2]
[353035081,1739502643183,-211.587828,0.00014027,2]
[353035082,1739502643193,-211.587828,0.00014027,2]
[353035083,1739502643203,-151.0,0.00014027,2]
[353035084,1739502643213,-206.983107,0.00014027,2]
[353035085,1739502643223,-151.0,0.00014027,2]
[353035087,1739502643232,-356.538573,0.00014027,2]
[353035089,1739502643241,-356.538573,0.00014027,2]
[353035090,1739502643251,-1172.873605,0.00014027,2]
[353035092,1739502643262,-1172.873605,0.00014027,2]
[353035093,1739502643273,-151.0,0.00014027,2]
[353035094,1739502643283,-151.0,0.00014027,2]
[353035095,1739502643292,-151.0,0.00014027,2]
[353035096,1739502643302,-151.0,0.00014027,2]
[353035097,1739502643311,-151.0,0.00014027,2]
[353035098,1739502643322,-500.0,0.00014027,2]
[353035099,1739502643332,-500.0,0.00014027,2]
[353035100,1739502643342,-151.0,0.00014027,2]
[353035101,1739502643352,-500.0,0.00014027,2]
[353035102,1739502643362,-1056.482873,0.00014027,2]
[353035103,1739502643371,-548.59,0.00014027,2]
[353035104,1739502643381,-1056.482873,0.00014027,2]
[353035105,1739502643391,-500.0,0.00014027,2]
[353035106,1739502643400,-151.0,0.00014027,2]
[353035107,1739502643410,-500.0,0.00014027,2]
[353035109,1739502643422,-652.82,0.00014027,2]
[353035111,1739502643431,-151.0,0.00014027,2]
[353035113,1739502643441,-500.0,0.00014027,2]
[353035115,1739502643450,-404.410496,0.00014027,2]
[353035117,1739502643460,-404.410496,0.00014027,2]
[353035119,1739502643469,-241.78660579,0.00014027,2]
[353035120,1739502643479,-393.040803,0.00014027,2]
[353035121,1739502643488,-500.0,0.00014027,2]
[353035122,1739502643497,-393.040803,0.00014027,2]
[353035123,1739502643506,-1816.876959,0.00014027,2]
[353035124,1739502643515,-1816.876959,0.00014027,2]
[353035125,1739502643525,-500.0,0.00014027,2]
[353035126,1739502643534,-3200.7,0.00014027,2]
[353035128,1739502643543,-502.97,0.00014027,2]
[353035129,1739502643553,-500.0,0.00014027,2]
[353035131,1739502643562,-225.006275,0.00014027,2]
[353035132,1739502643572,-748.07,0.00014027,2]
[353035133,1739502643584,-225.006275,0.00014027,2]
[353035134,1739502643595,-241.53378,0.00014027,2]
[353035136,1739502643604,-151.0,0.00014027,2]
[353035138,1739502643614,-241.53378,0.00014027,2]
[353035139,1739502643623,-6828.15,0.00014027,2]
[353035140,1739502643633,-1607.09,0.00014027,2]
[353035141,1739502643642,-1769.89,0.00014027,2]
[353035142,1739502643652,-592.56,0.00014027,2]
[353035143,1739502643662,-558.25060376,0.00014081,2]
[353035144,1739502643671,-500.0,0.00014105,2]
[353035145,1739502643680,-909.293133,0.00014108,2]
[353035146,1739502643692,-909.293133,0.00014108,2]
[353035147,1739502643702,-724.009696,0.00014108,2]
[353035148,1739502643711,-188.59131,0.00014108,2]
[353035149,1739502643720,-188.59131,0.00014108,2]
[353035150,1739502643732,-170.857251,0.00014108,2]
[353035151,1739502643743,-170.857251,0.00014108,2]
[353035152,1739502643754,-318.924386,0.00014108,2]
[353035153,1739502643765,-318.924386,0.00014108,2]
[353035154,1739502643774,-1077.026525,0.00014108,2]
[353035155,1739502643783,-1077.026525,0.00014108,2]
[353035156,1739502643792,-225.006275,0.00014108,2]
[353035157,1739502643803,-225.006275,0.00014108,2]
[353035158,1739502643813,-241.53378,0.00014108,2]
[353035159,1739502643823,-241.53378,0.00014108,2]
[353035160,1739502643834,-151.206588,0.00014109,2]
[353035161,1739502643951,-151.474977,0.00014109,2]
[353035162,1739502643963,-151.0,0.00014109,2]
[353035163,1739502643972,-909.293133,0.00014109,2]
[353035164,1739502643983,-909.293133,0.00014109,2]
[353035165,1739502643993,-724.009696,0.00014109,2]
[353035166,1739502644004,-188.59131,0.00014109,2]
[353035167,1739502644016,-500.0,0.00014109,2]
[353035168,1739502644026,-188.59131,0.00014109,2]
[353035169,1739502644037,-151.0,0.00014109,2]
[353035170,1739502644047,-344.870529,0.00014109,2]
[353035171,1739502644058,-344.870529,0.00014109,2]
[353035172,1739502644069,-377.649898,0.00014109,2]
[353035173,1739502644079,-377.649898,0.00014109,2]
[353035174,1739502644088,-318.924386,0.00014109,2]
[353035175,1739502644099,-318.924386,0.00014109,2]
[353035176,1739502644108,-211.587828,0.00014109,2]
[353035177,1739502644118,-211.587828,0.00014109,2]
[353035178,1739502644128,-151.0,0.00014109,2]
[353035179,1739502644138,-151.0,0.00014109,2]
[353035180,1739502644147,-356.538573,0.00014109,2]
[353035181,1739502644156,-356.538573,0.00014109,2]
[353035182,1739502644168,-1172.873605,0.00014109,2]
[353035183,1739502644177,-1172.873605,0.00014109,2]
[353035184,1739502644186,-151.0,0.00014109,2]
[353035185,1739502644196,-151.0,0.00014109,2]
[353035186,1739502644206,-151.0,0.00014109,2]
[353035187,1739502644215,-500.0,0.00014109,2]
[353035188,1739502644225,-151.0,0.00014109,2]
[353035189,1739502644234,-151.0,0.00014109,2]
[353035190,1739502644244,-500.0,0.00014109,2]
[353035191,1739502644253,-1056.482873,0.00014109,2]
[353035192,1739502644262,-1056.482873,0.00014109,2]
[353035193,1739502644272,-548.59,0.00014109,2]
[353035194,1739502644281,-1056.482873,0.00014109,2]
[353035195,1739502644291,-1056.482873,0.00014109,2]
[353035196,1739502644301,-500.0,0.00014109,2]
[353035197,1739502644311,-151.0,0.00014109,2]
[353035198,1739502644320,-300.76917,0.00014109,2]
[353035199,1739502644330,-652.82,0.00014109,2]
[353035200,1739502644340,-151.0,0.00014109,2]
[353035201,1739502644350,-151.0,0.00014109,2]
[353035202,1739502644359,-500.0,0.00014109,2]
[353035203,1739502644369,-404.410496,0.00014109,2]
[353035204,1739502644379,-404.410496,0.00014109,2]
[353035205,1739502644389,-404.410496,0.00014109,2]
[353035206,1739502644399,-404.410496,0.00014109,2]
[353035207,1739502644408,-393.040803,0.00014109,2]
[353035208,1739502644418,-393.040803,0.00014109,2]
[353035209,1739502644427,-393.040803,0.00014109,2]
[353035210,1739502644437,-393.040803,0.00014109,2]
[353035211,1739502644447,-1816.876959,0.00014109,2]
[353035212,1739502644456,-1816.876959,0.00014109,2]
[353035213,1739502644466,-1816.876959,0.00014109,2]
[353035214,1739502644475,-1816.876959,0.00014109,2]
[353035215,1739502644485,-500.0,0.00014109,2]
[353035216,1739502644494,-3200.7,0.00014109,2]
[353035217,1739502644503,-502.97,0.00014109,2]
[353035218,1739502644513,-500.0,0.00014109,2]
[353035219,1739502644522,-225.006275,0.00014109,2]
[353035220,1739502644531,-748.07,0.00014109,2]
[353035221,1739502644544,-225.006275,0.00014109,2]
[353035222,1739502644556,-241.53378,0.00014109,2]
[353035223,1739502644566,-151.0,0.00014109,2]
[353035224,1739502644580,-151.0,0.00014109,2]
[353035225,1739502644590,-241.53378,0.00014109,2]
[353035226,1739502644600,-6828.15,0.00014109,2]
[353035227,1739502644611,-1607.09,0.00014109,2]
[353035228,1739502644623,-1769.89,0.00014109,2]
[353035229,1739502644634,-592.56,0.00014109,2]
[353035230,1739502644645,-161.118796,0.00014112,5]
[353035231,1739502644654,-466.517645,0.00014163,2]
[353035232,1739502644667,-466.517645,0.00014163,2]
[353035233,1739502644676,-382.342922,0.00014163,2]
[353035234,1739502644685,-382.342922,0.00014163,2]
[353035235,1739502644695,-151.0,0.00014163,2]
[353035236,1739502644704,-151.0,0.00014163,2]
[353035237,1739502644714,-356.538573,0.00014163,2]
[353035238,1739502644725,-356.538573,0.00014163,2]
[353035239,1739502644735,-1172.873605,0.00014163,2]